fUST/lending_fUST_20260205
["ID","MTS","AMOUNT","RATE_DAILY","PERIOD"]
[404522808,1770239431876,-774.81,0.00026238,2]
[404522810,1770239431887,-266.85666667,0.00026238,2]
[404522812,1770239431896,-300.0,0.00026574,2]
[404522813,1770239431906,-406.0,0.00026574,2]
[404522815,1770239431915,-1627.14333333,0.00026575,2]
[404522816,1770239431926,-2750.0,0.00026575,2]
[404522817,1770239431937,-1428.97879449,0.00026575,2]
[404522829,1770239438020,-1351.05737036,0.00026575,2]
[404522830,1770239438030,-250.0,0.00033304,2]
[404522831,1770239438039,-152.42537049,0.00033592,118]
[404522832,1770239438049,-498.96734342,0.00036864,7]
[404522833,1770239438058,-500.0,0.00036864,15]
[404522834,1770239438067,-500.0,0.00036864,15]
[404522835,1770239438076,-500.0,0.00036864,15]
[404522836,1770239438086,-500.0,0.00036864,15]
[404522837,1770239438096,-173.226968,0.00036864,15]
[404522838,1770239438105,-500.0,0.00036864,15]
[404522839,1770239438114,-500.0,0.00036864,15]
[404522840,1770239438124,-213.51707496,0.00036864,15]
[404522841,1770239438133,-8491.5466799,0.00036865,2]
[404522842,1770239438143,-227.7,0.00042707,65]
[404522843,1770239438152,-4280.2878063,0.00042707,2]
[404522844,1770239438161,-7157.17949818,0.000429,2]
[404522845,1770239438171,-294.0,0.000476,30]
[404522846,1770239438180,-500.0,0.00048996,60]
[404522847,1770239438189,-741.08018794,0.00049289,2]
[404522848,1770239438198,-151.0,0.00050136,30]
[404522849,1770239438208,-151.0,0.00050821,32]
[404522850,1770239438217,-286.64624405,0.0005095,2]
[404522851,1770239438227,-150.0,0.0005095,120]
[404522852,1770239438236,-1957.802074,0.00051,85]
[404522853,1770239438247,-159.0,0.00051,120]
[404522854,1770239438256,-159.0,0.00051027,120]
[404522855,1770239438266,-151.0,0.00051506,34]
[404522856,1770239438275,-294.61917488,0.0005214,120]
[404522857,1770239438284,-4973.75020806,0.00052141,2]
[404522858,1770239438297,-1531.28253876,0.00052141,2]
[404522885,1770239440221,-749.58,0.00052141,2]
[404522892,1770239440277,-15639.81254588,0.00052141,2]
[404522894,1770239440286,-2001.3079516,0.00052141,2]
[404522896,1770239440296,-151.0,0.00052191,36]
[404522898,1770239440305,-151.0,0.00052876,38]
[404522900,1770239440315,-235.96918092,0.0005295,120]
[404522902,1770239440324,-2106.58400359,0.00053,120]
[404522904,1770239440333,-159.0,0.00053291,120]
[404522906,1770239440343,-212.86130881,0.00053325,25]
[404522908,1770239440353,-1365.43269744,0.00053415,4]
[404522910,1770239440362,-1211.15,0.00053415,10]
[404522912,1770239440372,-1009.3,0.00053415,10]
[404522914,1770239440381,-841.08,0.00053415,10]
[404522916,1770239440392,-700.9,0.00053415,10]
[404522918,1770239440402,-1000.00000004,0.00053425,120]
[404522920,1770239440411,-500.0,0.00053425,120]
[404522922,1770239440420,-500.0,0.00053425,120]
[404522924,1770239440430,-500.0,0.00053425,120]
[404522926,1770239440440,-500.0,0.00053425,120]
[404522928,1770239440449,-500.0,0.00053425,120]
[404522930,1770239440459,-397.44784931,0.00053425,120]
[404522932,1770239440469,-500.0,0.00053425,84]
[404522934,1770239440478,-500.0,0.00053425,84]
[404522936,1770239440488,-500.0,0.00053425,120]
[404522938,1770239440501,-500.0,0.00053425,84]
[404522940,1770239440510,-516.79748109,0.00053425,120]
[404522942,1770239440520,-1012.0,0.00053425,120]
[404522944,1770239440530,-1012.0,0.00053425,120]
[404522946,1770239440540,-1012.0,0.00053425,120]
[404522948,1770239440549,-500.0,0.00053425,84]
[404522950,1770239440559,-1012.0,0.00053425,120]
[404522952,1770239440570,-500.0,0.00053425,84]
[404522954,1770239440579,-500.0,0.00053425,84]
[404522957,1770239440588,-500.0,0.00053425,84]
[404522974,1770239440752,-500.0,0.00053425,84]
[404522976,1770239440762,-1012.0,0.00053425,120]
[404522978,1770239440771,-500.0,0.00053425,84]
[404522980,1770239440780,-500.0,0.00053425,84]
[404522982,1770239440789,-500.0,0.00053425,84]
[404522984,1770239440798,-500.0,0.00053425,84]
[404522986,1770239440808,-636.83327174,0.00053425,84]
[404522987,1770239440817,-1012.0,0.00053425,120]
[404522989,1770239440826,-500.0,0.00053425,120]
[404522991,1770239440835,-500.0,0.00053425,120]
[404522993,1770239440844,-500.0,0.00053425,120]
[404522995,1770239440853,-410.58724748,0.00053425,120]
[404522997,1770239440862,-1012.0,0.00053425,120]
[404522999,1770239440872,-500.0,0.00053425,120]
[404523001,1770239440881,-614.26426347,0.00053425,120]
[404523003,1770239440890,-500.0,0.00053425,120]
[404523005,1770239440899,-500.0,0.00053425,120]
[404523007,1770239440908,-500.0,0.00053425,120]
[404523009,1770239440917,-500.0,0.00053425,120]
[404523011,1770239440930,-1012.0,0.00053425,120]
[404523013,1770239440940,-500.0,0.00053425,120]
[404523015,1770239440949,-240.83219892,0.00053425,120]
[404523017,1770239440961,-1012.0,0.00053425,120]
[404523019,1770239440970,-1012.0,0.00053425,120]
[404523021,1770239440980,-150.0,0.00053425,120]
[404523023,1770239440989,-150.0,0.00053425,120]
[404523025,1770239440999,-1012.0,0.00053425,120]
[404523027,1770239441008,-150.0,0.00053425,120]
[404523029,1770239441017,-192.50058308,0.00053425,120]
[404523030,1770239441027,-251.72329838,0.00053425,120]
[404523032,1770239441036,-500.0,0.00053425,120]
[404523034,1770239441045,-500.0,0.00053425,120]
[404523036,1770239441054,-500.0,0.00053425,120]
[404523038,1770239441064,-500.0,0.00053425,120]
[404523040,1770239441077,-500.0,0.00053425,120]
[404523042,1770239441086,-500.0,0.00053425,120]
[404523044,1770239441095,-605.33609832,0.00053425,120]
[404523046,1770239441104,-500.0,0.00053425,120]
[404523048,1770239441113,-500.0,0.00053425,120]
[404523050,1770239441126,-500.0,0.00053425,120]
[404523052,1770239441136,-500.0,0.00053425,120]
[404523054,1770239441145,-500.0,0.00053425,120]
[404523056,1770239441154,-219.89804982,0.00053425,120]
[404523058,1770239441165,-500.0,0.00053425,120]
[404523060,1770239441174,-500.0,0.00053425,120]
[404523062,1770239441183,-500.0,0.00053425,120]
[404523064,1770239441192,-500.0,0.00053425,120]
[404523066,1770239441204,-500.0,0.00053425,120]
[404523068,1770239441215,-500.0,0.00053425,120]
[404523070,1770239441224,-500.0,0.00053425,120]
[404523072,1770239441234,-500.0,0.00053425,120]
[404523074,1770239441244,-500.0,0.00053425,120]
[404523076,1770239441253,-221.16340839,0.00053425,120]
[404523078,1770239441263,-500.0,0.00053425,120]
[404523080,1770239441272,-500.0,0.00053425,120]
[404523082,1770239441281,-500.0,0.00053425,120]
[404523084,1770239441290,-500.0,0.00053425,120]
[404523085,1770239441300,-324.78661827,0.00053425,120]
[404523086,1770239441309,-500.0,0.00053425,120]
[404523087,1770239441318,-500.0,0.00053425,120]
[404523088,1770239441327,-500.0,0.00053425,120]
[404523089,1770239441337,-500.0,0.00053425,120]
[404523090,1770239441347,-1012.0,0.00053425,120]
[404523091,1770239441356,-500.0,0.00053425,120]
[404523092,1770239441366,-608.0,0.00053425,120]
[404523093,1770239441375,-151.89441419,0.00053425,120]
[404523094,1770239441385,-500.0,0.00053425,120]
[404523095,1770239441394,-500.0,0.00053425,120]
[404523096,1770239441403,-353.00388015,0.00053425,120]
[404523097,1770239441413,-500.0,0.00053425,120]
[404523098,1770239441425,-500.0,0.00053425,120]
[404523099,1770239441435,-500.0,0.00053425,120]
[404523100,1770239441444,-150.0,0.00053425,120]
[404523101,1770239441456,-500.0,0.00053425,120]
[404523102,1770239441465,-150.0,0.00053425,120]
[404523103,1770239441475,-286.70519044,0.00053425,120]
[404523104,1770239441485,-150.0,0.00053425,120]
[404523105,1770239441500,-500.0,0.00053425,120]
[404523106,1770239441509,-500.0,0.00053425,120]
[404523107,1770239441519,-202.46216225,0.00053425,120]
[404523108,1770239441528,-500.0,0.00053425,120]
[404523109,1770239441538,-500.0,0.00053425,120]
[404523110,1770239441548,-500.0,0.00053425,120]
[404523111,1770239441557,-500.0,0.00053425,120]
[404523113,1770239441568,-590.5964791,0.00053425,120]
[404523115,1770239441578,-608.0,0.00053425,120]
[404523117,1770239441587,-1012.0,0.00053425,120]
[404523119,1770239441596,-608.0,0.00053425,120]
[404523121,1770239441605,-608.0,0.00053425,120]
[404523123,1770239441614,-608.0,0.00053425,120]
[404523125,1770239441623,-608.0,0.00053425,120]
[404523127,1770239441632,-608.0,0.00053425,120]
[404523128,1770239441641,-608.0,0.00053425,120]
[404523130,1770239441651,-608.0,0.00053425,120]
[404523133,1770239441660,-608.0,0.00053425,120]
[404523135,1770239441669,-608.0,0.00053425,120]
[404523136,1770239441680,-608.0,0.00053425,120]
[404523139,1770239441690,-1012.0,0.00053425,120]
[404523141,1770239441700,-608.0,0.00053425,120]
[404523142,1770239441711,-1012.0,0.00053425,120]
[404523145,1770239441720,-608.0,0.00053425,120]
[404523146,1770239441730,-1012.0,0.00053425,120]
[404523148,1770239441739,-608.0,0.00053425,120]
[404523150,1770239441748,-1012.0,0.00053425,120]
[404523152,1770239441758,-608.0,0.00053425,120]
[404523154,1770239441768,-1012.0,0.00053425,120]
[404523156,1770239441777,-608.0,0.00053425,120]
[404523158,1770239441786,-1012.0,0.00053425,120]
[404523160,1770239441796,-1012.0,0.00053425,120]
[404523162,1770239441805,-608.0,0.00053425,120]
[404523164,1770239441815,-1012.0,0.00053425,120]
[404523166,1770239441826,-608.0,0.00053425,120]
[404523168,1770239441836,-1012.0,0.00053425,120]
[404523171,1770239441846,-608.0,0.00053425,120]
[404523173,1770239441855,-1012.0,0.00053425,120]
[404523174,1770239441864,-608.0,0.00053425,120]
[404523176,1770239441874,-1014.91710989,0.00053425,120]
[404523178,1770239441884,-608.0,0.00053425,120]
[404523181,1770239441893,-608.0,0.00053425,120]
[404523183,1770239441902,-612.73982532,0.00053425,120]
[404523185,1770239441911,-3283.651739,0.00053425,120]
[404523187,1770239441921,-3283.651739,0.00053425,120]
[404523188,1770239441930,-3283.651739,0.00053425,120]
[404523191,1770239441942,-3283.651739,0.00053425,120]
[404523192,1770239441953,-3283.651739,0.00053425,120]
[404523195,1770239441962,-3283.651739,0.00053425,120]
[404523196,1770239441971,-3283.651739,0.00053425,120]
[404523198,1770239441982,-3283.651739,0.00053425,120]
[404523200,1770239441991,-3283.651739,0.00053425,120]
[404523203,1770239442002,-3283.651739,0.00053425,120]
[404523204,1770239442011,-3283.651739,0.00053425,120]
[404523206,1770239442021,-3283.651739,0.00053425,120]
[404523208,1770239442030,-200.63320629,0.00053425,120]
[404523210,1770239442039,-500.0,0.00053425,120]
[404523213,1770239442049,-500.0,0.00053425,120]
[404523215,1770239442058,-236.73438419,0.00053425,120]
[404523216,1770239442067,-500.0,0.00053425,120]
[404523218,1770239442076,-1338.0,0.00053425,120]
[404523220,1770239442086,-150.0,0.00053425,2]
[404523223,1770239442095,-500.0,0.00053425,120]
[404523225,1770239442104,-1338.0,0.00053425,120]
[404523227,1770239442121,-500.0,0.00053425,120]
[404523230,1770239442135,-500.0,0.00053425,120]
[404523232,1770239442145,-500.0,0.00053425,120]
[404523234,1770239442154,-150.0,0.00053425,120]
[404523236,1770239442163,-500.0,0.00053425,120]
[404523238,1770239442172,-150.0,0.00053425,120]
[404523240,1770239442182,-500.0,0.00053425,120]
[404523242,1770239442191,-152.84474291,0.00053425,120]
[404523244,1770239442202,-150.0,0.00053425,120]
[404523246,1770239442212,-150.0,0.00053425,120]
[404523248,1770239442221,-1338.0,0.00053425,120]
[404523250,1770239442231,-500.0,0.00053425,120]
[404523252,1770239442240,-946.0,0.00053425,120]
[404523254,1770239442249,-1338.0,0.00053425,120]
[404523256,1770239442259,-150.0,0.00053425,120]
[404523258,1770239442269,-500.0,0.00053425,120]
[404523260,1770239442278,-946.0,0.00053425,120]
[404523262,1770239442287,-249.43246848,0.00053425,120]
[404523264,1770239442297,-946.0,0.00053425,120]
[404523266,1770239442307,-500.0,0.00053425,120]
[404523268,1770239442317,-1338.0,0.00053425,120]
[404523270,1770239442326,-200.51408624,0.00053425,120]
[404523272,1770239442335,-1338.0,0.00053425,120]
[404523274,1770239442344,-500.0,0.00053425,120]
[404523276,1770239442354,-946.0,0.00053425,120]
[404523278,1770239442363,-1338.0,0.00053425,120]
[404523280,1770239442372,-500.0,0.00053425,120]
[404523282,1770239442382,-946.0,0.00053425,120]
[404523284,1770239442391,-1338.0,0.00053425,120]
[404523286,1770239442401,-500.0,0.00053425,120]
[404523288,1770239442411,-946.0,0.00053425,120]
[404523290,1770239442420,-1338.0,0.00053425,120]
[404523292,1770239442430,-500.0,0.00053425,120]
[404523294,1770239442440,-946.0,0.00053425,120]
[404523296,1770239442450,-500.0,0.00053425,120]
[404523298,1770239442461,-1338.0,0.00053425,120]
[404523301,1770239442470,-946.0,0.00053425,120]
[404523303,1770239442480,-500.0,0.00053425,120]
[404523305,1770239442491,-500.0,0.00053425,120]
[404523307,1770239442502,-153.05073387,0.00053425,120]
[404523309,1770239442511,-946.0,0.00053425,120]
[404523311,1770239442520,-1338.0,0.00053425,120]
[404523313,1770239442529,-500.0,0.00053425,120]
[404523315,1770239442540,-500.0,0.00053425,120]
[404523317,1770239442550,-946.0,0.00053425,120]
[404523319,1770239442560,-1338.0,0.00053425,120]
[404523321,1770239442570,-467.98175548,0.00053425,120]
[404523323,1770239442579,-500.0,0.00053425,120]
[404523325,1770239442589,-946.0,0.00053425,120]
[404523327,1770239442598,-1338.0,0.00053425,120]
[404523329,1770239442607,-500.0,0.00053425,120]
[404523331,1770239442616,-946.0,0.00053425,120]
[404523333,1770239442626,-1338.0,0.00053425,120]
[404523335,1770239442635,-500.0,0.00053425,120]
[404523337,1770239442645,-946.0,0.00053425,120]
[404523339,1770239442655,-1338.0,0.00053425,120]
[404523341,1770239442664,-636.72604333,0.00053425,120]
[404523343,1770239442675,-946.0,0.00053425,120]
[404523345,1770239442684,-1338.0,0.00053425,120]
[404523347,1770239442693,-946.0,0.00053425,120]
[404523349,1770239442703,-946.0,0.00053425,120]
[404523351,1770239442712,-1338.0,0.00053425,120]
[404523353,1770239442722,-946.0,0.00053425,120]
[404523355,1770239442732,-500.0,0.00053425,120]
[404523357,1770239442741,-500.0,0.00053425,120]
[404523359,1770239442751,-500.0,0.00053425,120]
[404523361,1770239442760,-500.0,0.00053425,120]
[404523363,1770239442770,-1338.0,0.00053425,120]
[404523365,1770239442779,-500.0,0.00053425,120]
[404523367,1770239442789,-946.0,0.00053425,120]
[404523369,1770239442799,-500.0,0.00053425,120]
[404523371,1770239442808,-500.0,0.00053425,120]
[404523373,1770239442818,-500.0,0.00053425,120]
[404523375,1770239442828,-500.0,0.00053425,120]
[404523377,1770239442837,-500.0,0.00053425,120]
[404523379,1770239442847,-500.0,0.00053425,120]
[404523381,1770239442857,-500.0,0.00053425,120]
[404523383,1770239442867,-500.0,0.00053425,120]
[404523386,1770239442876,-500.0,0.00053425,120]
[404523388,1770239442886,-385.54650589,0.00053425,120]
[404523390,1770239442895,-140.8848883,0.00053425,120]
[404523441,1770239445985,-224.38373409,0.00053425,120]
[404523442,1770239446107,-946.0,0.00053425,120]
[404523443,1770239446118,-1338.0,0.00053425,120]
[404523444,1770239446128,-150.0,0.00053425,120]
[404523445,1770239446138,-599.0,0.00053425,120]
[404523446,1770239446147,-150.0,0.00053425,120]
[404523447,1770239446158,-946.0,0.00053425,120]
[404523448,1770239446167,-1338.0,0.00053425,120]
[404523449,1770239446177,-599.0,0.00053425,120]
[404523451,1770239446187,-150.0,0.00053425,120]
[404523452,1770239446195,-241.84186838,0.00053425,120]
[404523454,1770239446243,-357.15813162,0.00053425,120]
[404523455,1770239446252,-150.0,0.00053425,120]
[404523456,1770239446261,-500.0,0.00053425,120]
[404523457,1770239446270,-599.0,0.00053425,120]
[404523458,1770239446279,-203.09416946,0.00053425,120]
[404523459,1770239446288,-500.0,0.00053425,120]
[404523460,1770239446298,-599.0,0.00053425,120]
[404523461,1770239446308,-325.65363654,0.00053425,120]
[404523462,1770239446319,-174.34636346,0.00053425,120]
[404523463,1770239446329,-599.0,0.00053425,120]
[404523464,1770239446338,-500.0,0.00053425,120]
[404523465,1770239446347,-599.0,0.00053425,120]
[404523466,1770239446357,-500.0,0.00053425,120]
[404523467,1770239446366,-599.0,0.00053425,120]
[404523468,1770239446376,-599.0,0.00053425,120]
[404523469,1770239446385,-500.0,0.00053425,120]
[404523470,1770239446394,-599.0,0.00053425,120]
[404523471,1770239446409,-191.98336846,0.00053425,120]
[404523472,1770239446430,-946.0,0.00053425,120]
[404523473,1770239446448,-599.0,0.00053425,120]
[404523474,1770239446459,-647.54511943,0.00053425,120]
[404523479,1770240444436,503.47603724,0.00028867,120]
[404523480,1770240574120,-508.83935554,0.00013273,2]
[404523481,1770240574141,-500.0,0.00013273,2]
[404523482,1770240574163,-500.0,0.00013273,2]
[404523483,1770240574186,-150.0,0.00013286,2]
[404523484,1770240574208,-243.0,0.00013326,2]
[404523485,1770240574232,-1200.0,0.00013326,2]
[404523486,1770240574255,-300.0,0.00013326,2]
[404523487,1770240574274,-1248.17093176,0.00013327,2]
[404523488,1770240574297,-500.0,0.00013821,2]
[404523489,1770240574319,-500.0,0.00013821,2]
[404523490,1770240574341,-420.0,0.00014609,2]
[404523491,1770240574362,-646.54510783,0.00014609,2]
[404523492,1770240617509,234.01413472,0.00026572,120]
[404523540,1770240639385,-177.0,0.00015286,2]
[404523541,1770240639396,-245.01,0.000153,2]
[404523542,1770240639406,-175.06817999,0.00017286,2]
[404523543,1770240639416,-1351.47,0.0002599,10]
[404523544,1770240639426,-1126.23,0.0002599,10]
[404523545,1770240639437,-938.52,0.0002599,10]
[404523546,1770240639447,-782.1,0.0002599,10]
[404523547,1770240639457,-300.0,0.00025999,2]
[404523548,1770240639468,-1200.0,0.00025999,2]
[404523549,1770240639479,-6584.3106593,0.00025999,2]
[404523550,1770240639491,-5516.84030093,0.00026,30]
[404523551,1770240639503,-101770.56232784,0.00026,2]
[404523561,1770240640791,-1414.04904198,0.00026,2]
[404523562,1770240640805,-18044.78252446,0.00026,2]
[404523563,1770240640820,-407.89,0.00026,2]
[404523593,1770240641277,-2000.03313,0.00026,2]
[404523934,1770240644899,-2829.496,0.00026,2]
[404523935,1770240644911,-1088.56288172,0.00026,2]
[404523943,1770240645207,-10015.55679996,0.00026,2]
[404523944,1770240645219,-4997.0520601,0.00026,2]
[404523945,1770240645230,-6097.03692679,0.00026,2]
[404523961,1770240646339,-53862.2590054,0.00026,2]
[404523962,1770240646349,-7556.03443005,0.00026,2]
[404523963,1770240646359,-7556.03443005,0.00026,2]
[404523964,1770240646369,-7556.03443005,0.00026,2]
[404523965,1770240646378,-880.82584396,0.00026,2]
[404523966,1770240646388,-322.0,0.00026,14]
[404523967,1770240646398,-163.07331911,0.00026173,2]
[404523968,1770240646407,-741.08018794,0.00026237,2]
[404523969,1770240646417,-500.0,0.00026572,2]
[404523970,1770240646427,-500.0,0.00026572,2]
[404523971,1770240646436,-500.0,0.00026572,2]
[404523972,1770240646446,-500.0,0.00026572,2]
[404523973,1770240646456,-500.0,0.00026572,2]
[404523974,1770240646466,-500.0,0.00026572,2]
[404523975,1770240646475,-500.0,0.00026572,2]
[404523976,1770240646485,-500.0,0.00026572,2]
[404523977,1770240646495,-500.0,0.00026572,2]
[404523978,1770240646505,-500.0,0.00026572,2]
[404523979,1770240646515,-307.0134201,0.00026572,2]
[404523980,1770240646527,-500.0,0.00026572,2]
[404523981,1770240646536,-279.53577756,0.00026572,2]
[404523982,1770240646546,-438.43762904,0.00026572,2]
[404523983,1770240646555,-500.0,0.00026572,2]
[404523984,1770240646564,-500.0,0.00026572,2]
[404523985,1770240646574,-215.28118487,0.00026572,2]
[404523986,1770240646583,-500.0,0.00026572,2]
[404523987,1770240646593,-500.0,0.00026572,2]
[404523988,1770240646603,-500.0,0.00026572,2]
[404523989,1770240646617,-500.0,0.00026572,2]
[404523990,1770240646627,-500.0,0.00026572,2]
[404523991,1770240646636,-500.0,0.00026572,2]
[404523992,1770240646647,-500.0,0.00026572,2]
[404523993,1770240646656,-500.0,0.00026572,2]
[404523994,1770240646667,-500.0,0.00026572,2]
[404523995,1770240646676,-500.0,0.00026572,2]
[404523996,1770240646686,-500.0,0.00026572,2]
[404523997,1770240646695,-500.0,0.00026572,2]
[404523998,1770240646706,-500.0,0.00026572,2]
[404523999,1770240646717,-500.0,0.00026572,2]
[404524000,1770240646726,-500.0,0.00026572,2]
[404524001,1770240646736,-500.0,0.00026572,2]
[404524002,1770240646746,-500.0,0.00026572,2]
[404524003,1770240646898,-500.0,0.00026572,2]
[404524004,1770240646910,-500.0,0.00026572,2]
[404524005,1770240646919,-500.0,0.00026572,2]
[404524006,1770240646930,-548.84333494,0.00026572,2]
[404524007,1770240646940,-500.0,0.00026572,2]
[404524008,1770240646949,-500.0,0.00026572,2]
[404524009,1770240646959,-500.0,0.00026572,2]
[404524010,1770240646968,-500.0,0.00026572,2]
[404524011,1770240646978,-500.0,0.00026572,2]
[404524012,1770240646987,-500.0,0.00026572,2]
[404524013,1770240646996,-500.0,0.00026572,2]
[404524014,1770240647006,-500.0,0.00026572,2]
[404524015,1770240647016,-384.48010806,0.00026572,2]
[404524016,1770240647027,-500.0,0.00026572,2]
[404524017,1770240647036,-500.0,0.00026572,2]
[404524018,1770240647045,-500.0,0.00026572,2]
[404524019,1770240647054,-500.0,0.00026572,2]
[404524020,1770240647063,-500.0,0.00026572,2]
[404524021,1770240647072,-500.0,0.00026572,2]
[404524022,1770240647082,-500.0,0.00026572,2]
[404524023,1770240647092,-499.99999999,0.00026572,2]
[404524024,1770240647103,-420.0,0.00028137,2]
[404524025,1770240647113,-366.0,0.00028262,2]
[404524026,1770240647122,-718.0,0.00028954,2]
[404524027,1770240647132,-179.0,0.00028954,2]
[404524028,1770240647143,-7556.03443005,0.00030083,2]
[404524029,1770240647152,-587.0,0.0003045,2]
[404524030,1770240647163,-500.0,0.00031084,120]
[404524031,1770240647172,-401.54,0.00031954,2]
[404524032,1770240647183,-179.0,0.00031954,2]
[404524033,1770240647194,-1000.0,0.00032282,30]
[404524034,1770240647205,-182.16,0.00032534,32]
[404524035,1770240647214,-407.0,0.00032954,2]
[404524036,1770240647223,-179.0,0.00034954,2]
[404524037,1770240647235,-1746.230728,0.00035,5]
[404524038,1770240647244,-322.0,0.00035,30]
[404524039,1770240647254,-152.03,0.00036586,60]
[404524040,1770240647263,-152.03,0.00036686,60]
[404524041,1770240647272,-152.03,0.00036786,60]
[404524042,1770240647281,-500.0,0.00036864,120]
[404524043,1770240647290,-152.03,0.00036886,60]
[404524044,1770240647300,-152.03,0.00036986,60]
[404524045,1770240647310,-152.03,0.00037086,60]
[404524046,1770240647319,-152.03,0.00037186,60]
[404524047,1770240647328,-152.03,0.00037286,60]
[404524048,1770240647338,-152.03,0.00037386,60]
[404524049,1770240647347,-152.03,0.00037486,60]
[404524050,1770240647356,-152.03,0.00037586,60]
[404524051,1770240647365,-152.03,0.00037686,60]
[404524052,1770240647374,-152.03,0.00037786,60]
[404524053,1770240647384,-152.03,0.00037886,60]
[404524054,1770240647394,-322.0,0.000379,30]
[404524055,1770240647404,-159.49,0.00037954,2]
[404524056,1770240647414,-152.03,0.00037986,60]
[404524057,1770240647424,-152.03,0.00038086,60]
[404524058,1770240647434,-152.12623394,0.00038186,60]
[404524059,1770240647444,-206.15969208,0.000397,120]
[404524060,1770240647453,-169.08618076,0.000397,120]
[404524061,1770240647463,-651.75,0.00039704,10]
[404524062,1770240647471,-32949.4683467,0.00039714,2]
[404524063,1770240665599,1000.0,0.00014247,2]
[404524064,1770240665649,500.0,0.00013699,2]
[404524065,1770240665700,500.0,0.00014795,2]
[404524066,1770240667065,398.97249337,0.00013699,2]
[404524067,1770240684983,500.0,0.00025999,120]
[404524068,1770240685219,500.0,0.00025999,120]
[404524069,1770240685478,500.0,0.00025999,120]
[404524070,1770240685749,500.0,0.00025999,120]
[404524071,1770240686010,500.0,0.00025999,120]
[404524072,1770240686252,500.0,0.00025999,120]
[404524073,1770240686471,261.58404637,0.00025999,120]
[404524074,1770240862514,500.0,0.00025999,120]
[404524075,1770240862777,504.59660533,0.00025999,120]
[404524077,1770241080094,203.41,9.99e-05,2]
[404524081,1770241252939,500.0,0.00025999,120]
[404524082,1770241253202,500.0,0.00025999,120]
[404524083,1770241253470,500.0,0.00025999,120]
[404524084,1770241253740,500.0,0.00025999,120]
[404524085,1770241254121,500.0,0.00025999,120]
[404524086,1770241254362,500.0,0.00025999,120]
[404524087,1770241254705,500.0,0.00025999,120]
[404524088,1770241323223,500.0,0.00025999,120]
[404524089,1770241323460,215.64413931,0.00025999,120]
[404524091,1770241653436,219.94175651,0.00039487,120]
[404524092,1770241773361,-557.09,0.000131,2]
[404524093,1770241773381,-150.0,0.00013137,2]
[404524094,1770241773401,-300.0,0.00013171,2]
[404524095,1770241773423,-2817.587948,0.00013172,2]
[404524117,1770241832840,-3994.82046365,0.00013172,2]
[404524118,1770241832850,-1200.0,0.00013172,2]
[404524119,1770241832861,-150.0,0.00013173,2]
[404524120,1770241832871,-2292.93796163,0.00013173,2]
[404524129,1770241838426,-1950.7419984,0.00013173,2]
[404524130,1770241838540,-880.42128627,0.00013173,2]
[404524132,1770241838552,-98.4071743,0.00013173,2]
[404524134,1770241838562,-300.0,0.00013265,2]
[404524136,1770241838571,-300.0,0.00013265,2]
[404524138,1770241838581,-500.0,0.00013266,2]